[Event "*** SCC Grand Prix: Titled Tuesday Blitz"]
[Site "Chess.com"]
[Date "2020.08.11"]
[Round "6"]
[White "mjray79"]
[Black "Spriteball"]
[Result "0-1"]
[WhiteElo "2350"]
[BlackElo "2117"]
[TimeControl "180+1"]
[EndTime "11:09:01 PDT"]
[Termination "Spriteball won on time"]

1. d4 {[%clk 0:03:00.9]} 1... d5 {[%clk 0:02:59.2]} 2. c4 {[%clk 0:03:01.3]}
2... c6 {[%clk 0:02:59.5]} 3. Nf3 {[%clk 0:03:00.9]} 3... Nf6 {[%clk 0:02:59.8]}
4. Nc3 {[%clk 0:03:00]} 4... e6 {[%clk 0:02:59.1]} 5. e3 {[%clk 0:02:56.6]} 5...
Nbd7 {[%clk 0:02:59.1]} 6. b3 {[%clk 0:02:56.4]} 6... Bd6 {[%clk 0:02:57.7]} 7.
Bb2 {[%clk 0:02:56.1]} 7... O-O {[%clk 0:02:51.4]} 8. Bd3 {[%clk 0:02:56.1]}
8... e5 {[%clk 0:02:50.4]} 9. cxd5 {[%clk 0:02:50.9]} 9... cxd5 {[%clk
0:02:50.2]} 10. dxe5 {[%clk 0:02:50.9]} 10... Nxe5 {[%clk 0:02:50.1]} 11. Be2
{[%clk 0:02:48.5]} 11... Be6 {[%clk 0:02:39.7]} 12. O-O {[%clk 0:02:47.2]} 12...
Nxf3+ {[%clk 0:02:31.4]} 13. Bxf3 {[%clk 0:02:46.7]} 13... a6 {[%clk 0:02:29.3]}
14. Kh1 {[%clk 0:02:44.6]} 14... Be5 {[%clk 0:02:22.4]} 15. Rc1 {[%clk
0:02:42.3]} 15... Rc8 {[%clk 0:02:18.4]} 16. Qd2 {[%clk 0:02:38.2]} 16... Rc7
{[%clk 0:01:50.6]} 17. Rfd1 {[%clk 0:02:30.8]} 17... Rd7 {[%clk 0:01:50.3]} 18.
Ne2 {[%clk 0:02:28.5]} 18... Bxb2 {[%clk 0:01:46.6]} 19. Qxb2 {[%clk 0:02:29.4]}
19... Bg4 {[%clk 0:01:43.9]} 20. Nd4 {[%clk 0:02:03.1]} 20... Bxf3 {[%clk
0:01:41.7]} 21. Nxf3 {[%clk 0:02:04]} 21... Ne4 {[%clk 0:01:39.2]} 22. Kg1
{[%clk 0:02:00.4]} 22... Re8 {[%clk 0:01:37.4]} 23. h3 {[%clk 0:01:59.1]} 23...
Re6 {[%clk 0:01:35.6]} 24. Qd4 {[%clk 0:01:54.2]} 24... h6 {[%clk 0:01:26.4]}
25. Ne5 {[%clk 0:01:52.2]} 25... Rdd6 {[%clk 0:01:24.5]} 26. Nf3 {[%clk
0:01:35.5]} 26... Rg6 {[%clk 0:01:14.5]} 27. Kf1 {[%clk 0:01:31.1]} 27... Rge6
{[%clk 0:01:02.3]} 28. b4 {[%clk 0:01:20.6]} 28... Qd7 {[%clk 0:01:01.6]} 29.
Kg1 {[%clk 0:01:13]} 29... Re8 {[%clk 0:00:57.5]} 30. Nd2 {[%clk 0:01:01.2]}
30... Nxd2 {[%clk 0:00:48.9]} 31. Qxd2 {[%clk 0:00:58.2]} 31... d4 {[%clk
0:00:43.2]} 32. exd4 {[%clk 0:00:56.8]} 32... Rd8 {[%clk 0:00:43.6]} 33. Rc4
{[%clk 0:00:41.4]} 33... b5 {[%clk 0:00:43.3]} 34. Rc5 {[%clk 0:00:36.7]} 34...
Rxd4 {[%clk 0:00:42.2]} 35. Qxd4 {[%clk 0:00:36.5]} 35... Qxd4 {[%clk
0:00:42.4]} 36. Rxd4 {[%clk 0:00:37.3]} 36... Rxd4 {[%clk 0:00:42.9]} 37. a3
{[%clk 0:00:34.6]} 37... Rd3 {[%clk 0:00:42.8]} 38. Rc8+ {[%clk 0:00:33.9]}
38... Kh7 {[%clk 0:00:42.3]} 39. Rc7 {[%clk 0:00:34.1]} 39... f6 {[%clk
0:00:39.6]} 40. Kf1 {[%clk 0:00:24.5]} 40... Rxa3 {[%clk 0:00:39.4]} 41. Ra7
{[%clk 0:00:24.4]} 41... Ra2 {[%clk 0:00:37.3]} 42. g3 {[%clk 0:00:23.3]} 42...
Kg6 {[%clk 0:00:35.1]} 43. Kg2 {[%clk 0:00:23]} 43... Ra3 {[%clk 0:00:34.3]} 44.
h4 {[%clk 0:00:19.3]} 44... f5 {[%clk 0:00:33.5]} 45. Rb7 {[%clk 0:00:18.3]}
45... Kf6 {[%clk 0:00:31.5]} 46. f4 {[%clk 0:00:16.2]} 46... Ra4 {[%clk
0:00:22.3]} 47. Kf3 {[%clk 0:00:12.9]} 47... Rxb4 {[%clk 0:00:21.7]} 48. Rb6+
{[%clk 0:00:12.9]} 48... Kf7 {[%clk 0:00:20.9]} 49. Rxa6 {[%clk 0:00:13.8]}
49... Rb3+ {[%clk 0:00:20.6]} 50. Kg2 {[%clk 0:00:13.9]} 50... b4 {[%clk
0:00:20.8]} 51. Ra7+ {[%clk 0:00:13.6]} 51... Kg6 {[%clk 0:00:19.3]} 52. Ra6+
{[%clk 0:00:13]} 52... Kh7 {[%clk 0:00:19.4]} 53. Ra5 {[%clk 0:00:13]} 53...
Rb2+ {[%clk 0:00:15.5]} 54. Kh3 {[%clk 0:00:12.3]} 54... b3 {[%clk 0:00:11.9]}
55. Rxf5 {[%clk 0:00:11.1]} 55... Rc2 {[%clk 0:00:11.6]} 56. Rb5 {[%clk
0:00:10.6]} 56... b2 {[%clk 0:00:11.4]} 57. h5 {[%clk 0:00:10.7]} 57... Kg8
{[%clk 0:00:10.6]} 58. Rb7 {[%clk 0:00:10.6]} 58... Kf8 {[%clk 0:00:10.6]} 59.
Kg4 {[%clk 0:00:10.7]} 59... Kg8 {[%clk 0:00:06.6]} 60. Kf5 {[%clk 0:00:10.2]}
60... Rc5+ {[%clk 0:00:06.4]} 61. Kg4 {[%clk 0:00:09.3]} 61... Rc2 {[%clk
0:00:06]} 62. Kf5 {[%clk 0:00:09]} 62... Rc5+ {[%clk 0:00:05.6]} 63. Ke4 {[%clk
0:00:08.1]} 63... Rxh5 {[%clk 0:00:02.7]} 64. Rxb2 {[%clk 0:00:08.2]} 64... Rh3
{[%clk 0:00:02.5]} 65. Kf3 {[%clk 0:00:07.4]} 65... Rh1 {[%clk 0:00:01.9]} 66.
Kg4 {[%clk 0:00:07.1]} 66... Re1 {[%clk 0:00:02.1]} 67. Rb7 {[%clk 0:00:07]}
67... Kh7 {[%clk 0:00:02.3]} 68. Kf5 {[%clk 0:00:06.5]} 68... Rc1 {[%clk
0:00:01.6]} 69. Rb5 {[%clk 0:00:04.9]} 69... Rc4 {[%clk 0:00:01.3]} 70. g4
{[%clk 0:00:04.3]} 70... Rc6 {[%clk 0:00:01.6]} 71. Ke4 {[%clk 0:00:03.9]} 71...
Rf6 {[%clk 0:00:01.6]} 72. f5 {[%clk 0:00:03.1]} 72... Rf7 {[%clk 0:00:02.4]}
73. Kf4 {[%clk 0:00:02.8]} 73... Re7 {[%clk 0:00:02.9]} 74. Rb6 {[%clk 0:00:03]}
74... Ra7 {[%clk 0:00:03.8]} 75. Rc6 {[%clk 0:00:03]} 75... Ra4+ {[%clk
0:00:04.3]} 76. Kg3 {[%clk 0:00:03.2]} 76... Ra5 {[%clk 0:00:05.2]} 77. Rd6
{[%clk 0:00:02.7]} 77... Ra3+ {[%clk 0:00:05.6]} 78. Kh4 {[%clk 0:00:01.7]}
78... Ra4 {[%clk 0:00:06.5]} 79. Kg3 {[%clk 0:00:01.9]} 79... Ra3+ {[%clk
0:00:06.5]} 80. Kh4 {[%clk 0:00:02.2]} 80... Ra4 {[%clk 0:00:07.4]} 81. Rd7
{[%clk 0:00:02.6]} 81... Ra5 {[%clk 0:00:08.3]} 82. f6 {[%clk 0:00:02.3]} 82...
Rg5 {[%clk 0:00:06.6]} 0-1

[Event "*** SCC Grand Prix: Titled Tuesday Blitz"]
[Site "Chess.com"]
[Date "2020.08.11"]
[Round "6"]
[White "talaicito"]
[Black "Savva09022009"]
[Result "0-1"]
[WhiteElo "2094"]
[BlackElo "2329"]
[TimeControl "180+1"]
[EndTime "11:09:04 PDT"]
[Termination "Savva09022009 won on time"]

1. d4 {[%clk 0:03:00.9]} 1... Nf6 {[%clk 0:02:58.1]} 2. Bf4 {[%clk 0:03:01.4]}
2... d5 {[%clk 0:02:55.4]} 3. Nc3 {[%clk 0:03:02.3]} 3... e6 {[%clk 0:02:55.7]}
4. e3 {[%clk 0:03:02.2]} 4... a6 {[%clk 0:02:55.5]} 5. Nf3 {[%clk 0:03:02.7]}
5... c5 {[%clk 0:02:55.5]} 6. a3 {[%clk 0:02:55.6]} 6... Nc6 {[%clk 0:02:54.8]}
7. Ne5 {[%clk 0:02:47.8]} 7... cxd4 {[%clk 0:02:49.3]} 8. exd4 {[%clk
0:02:47.3]} 8... Bd6 {[%clk 0:02:48.2]} 9. Nxc6 {[%clk 0:02:21.7]} 9... bxc6
{[%clk 0:02:44.4]} 10. Bxd6 {[%clk 0:02:22.3]} 10... Qxd6 {[%clk 0:02:45]} 11.
Na4 {[%clk 0:02:19.8]} 11... O-O {[%clk 0:02:40.8]} 12. Be2 {[%clk 0:02:18.1]}
12... e5 {[%clk 0:02:36.7]} 13. c3 {[%clk 0:02:16]} 13... e4 {[%clk 0:02:33.7]}
14. O-O {[%clk 0:02:13.6]} 14... Bf5 {[%clk 0:02:25.2]} 15. Nc5 {[%clk
0:02:11.7]} 15... Qf4 {[%clk 0:02:19.3]} 16. Qc1 {[%clk 0:01:47.2]} 16... Qh4
{[%clk 0:02:13.8]} 17. Qe3 {[%clk 0:01:21.4]} 17... a5 {[%clk 0:01:53.3]} 18. a4
{[%clk 0:01:14.9]} 18... Bg4 {[%clk 0:01:37.7]} 19. f3 {[%clk 0:00:48.7]} 19...
exf3 {[%clk 0:01:34.6]} 20. Bxf3 {[%clk 0:00:48.4]} 20... Rae8 {[%clk
0:01:23.7]} 21. Qf2 {[%clk 0:00:47.9]} 21... Qh5 {[%clk 0:01:19.9]} 22. Rae1
{[%clk 0:00:39.9]} 22... Bxf3 {[%clk 0:00:59.3]} 23. Qxf3 {[%clk 0:00:39.3]}
23... Qg5 {[%clk 0:00:58.2]} 24. h3 {[%clk 0:00:30.8]} 24... Qd2 {[%clk
0:00:54.1]} 25. Qf2 {[%clk 0:00:24]} 25... Qg5 {[%clk 0:00:38.3]} 26. Nd7 {[%clk
0:00:20.5]} 26... Rxe1 {[%clk 0:00:24.7]} 27. Nxf6+ {[%clk 0:00:19.9]} 27...
Qxf6 {[%clk 0:00:23.3]} 28. Qxf6 {[%clk 0:00:19.7]} 28... gxf6 {[%clk
0:00:24.2]} 29. Rxe1 {[%clk 0:00:19.7]} 29... Rb8 {[%clk 0:00:24.1]} 30. Re2
{[%clk 0:00:19.9]} 30... Kf8 {[%clk 0:00:23.2]} 31. Kf2 {[%clk 0:00:20.8]} 31...
Kg7 {[%clk 0:00:21.2]} 32. Kf3 {[%clk 0:00:21.2]} 32... Kg6 {[%clk 0:00:21]} 33.
Kf4 {[%clk 0:00:21.9]} 33... h5 {[%clk 0:00:20.9]} 34. g4 {[%clk 0:00:20.2]}
34... hxg4 {[%clk 0:00:20.4]} 35. hxg4 {[%clk 0:00:21.1]} 35... Rh8 {[%clk
0:00:20.3]} 36. Re7 {[%clk 0:00:17.6]} 36... Rh2 {[%clk 0:00:20.5]} 37. Ra7
{[%clk 0:00:17.1]} 37... Rxb2 {[%clk 0:00:20.7]} 38. Rxa5 {[%clk 0:00:17.2]}
38... Rf2+ {[%clk 0:00:19.7]} 39. Kg3 {[%clk 0:00:15.9]} 39... Ra2 {[%clk
0:00:17.8]} 40. Rc5 {[%clk 0:00:15.7]} 40... Rxa4 {[%clk 0:00:17.3]} 41. Rxc6
{[%clk 0:00:16]} 41... Ra3 {[%clk 0:00:16.9]} 42. Rc5 {[%clk 0:00:16]} 42... Rb3
{[%clk 0:00:16.2]} 43. Kf4 {[%clk 0:00:16]} 43... Ra3 {[%clk 0:00:16.1]} 44.
Rxd5 {[%clk 0:00:15.4]} 44... Rxc3 {[%clk 0:00:15.9]} 45. Rd8 {[%clk 0:00:15.1]}
45... Rc1 {[%clk 0:00:15.7]} 46. Rg8+ {[%clk 0:00:11.4]} 46... Kh7 {[%clk
0:00:15]} 47. Rf8 {[%clk 0:00:10.4]} 47... Kg7 {[%clk 0:00:14.5]} 48. Rd8 {[%clk
0:00:10.1]} 48... Rf1+ {[%clk 0:00:14.8]} 49. Ke4 {[%clk 0:00:09.4]} 49... Kg6
{[%clk 0:00:12.5]} 50. d5 {[%clk 0:00:08.7]} 50... Kg5 {[%clk 0:00:12.7]} 51.
Rg8+ {[%clk 0:00:07.8]} 51... Kh4 {[%clk 0:00:12.7]} 52. d6 {[%clk 0:00:07.9]}
52... Rd1 {[%clk 0:00:12]} 53. Kf5 {[%clk 0:00:02.7]} 53... Rxd6 {[%clk
0:00:09.8]} 54. Rh8+ {[%clk 0:00:02.2]} 54... Kg3 {[%clk 0:00:09.7]} 55. Rf8
{[%clk 0:00:01.6]} 55... Rd5+ {[%clk 0:00:08.5]} 56. Kxf6 {[%clk 0:00:02]} 56...
Kxg4 {[%clk 0:00:07.8]} 57. Rxf7 {[%clk 0:00:02.9]} 57... Ra5 {[%clk 0:00:07.5]}
58. Rg7+ {[%clk 0:00:02.7]} 58... Kf4 {[%clk 0:00:07.7]} 59. Rf7 {[%clk
0:00:02.9]} 59... Ra6+ {[%clk 0:00:08.1]} 60. Kg7+ {[%clk 0:00:03.8]} 60... Kg5
{[%clk 0:00:08.1]} 61. Kf8 {[%clk 0:00:03]} 61... Kg6 {[%clk 0:00:06.3]} 62.
Rg7+ {[%clk 0:00:03.5]} 62... Kf6 {[%clk 0:00:06.3]} 63. Rf7+ {[%clk 0:00:04.1]}
63... Ke6 {[%clk 0:00:06.7]} 64. Re7+ {[%clk 0:00:04.7]} 64... Kd6 {[%clk
0:00:07.6]} 65. Rh7 {[%clk 0:00:02.6]} 65... Ra8+ {[%clk 0:00:07.4]} 66. Kg7
{[%clk 0:00:02.8]} 66... Ke5 {[%clk 0:00:07.6]} 67. Kg6 {[%clk 0:00:02.5]} 67...
Ra6+ {[%clk 0:00:07.5]} 68. Kg5 {[%clk 0:00:02.3]} 68... Ra1 {[%clk 0:00:08]}
69. Re7+ {[%clk 0:00:02.3]} 69... Kd6 {[%clk 0:00:08.6]} 70. Re2 {[%clk
0:00:02.2]} 70... Rg1+ {[%clk 0:00:09.1]} 71. Kf4 {[%clk 0:00:01.5]} 71... Kd5
{[%clk 0:00:10]} 72. Rd2+ {[%clk 0:00:01.1]} 72... Kc4 {[%clk 0:00:09.7]} 73.
Rc2+ {[%clk 0:00:01.1]} 73... Kd3 {[%clk 0:00:09.5]} 74. Rf2 {[%clk 0:00:01.8]}
74... Kc3 {[%clk 0:00:10.4]} 75. Re2 {[%clk 0:00:01.4]} 75... Kd3 {[%clk
0:00:11.3]} 76. Re3+ {[%clk 0:00:01.7]} 76... Kd4 {[%clk 0:00:10.4]} 77. Re4+
{[%clk 0:00:01.9]} 77... Kd3 {[%clk 0:00:10.8]} 78. Re3+ {[%clk 0:00:02.1]}
78... Kd2 {[%clk 0:00:11.4]} 79. Re6 {[%clk 0:00:01.1]} 79... Kd3 {[%clk
0:00:10.3]} 80. Ke5 {[%clk 0:00:01]} 80... Rg5+ {[%clk 0:00:09.4]} 81. Kd6
{[%clk 0:00:01.5]} 81... Kd4 {[%clk 0:00:09.9]} 82. Rf6 {[%clk 0:00:01.2]} 82...
Rd5+ {[%clk 0:00:10.5]} 0-1

[Event "*** SCC Grand Prix: Titled Tuesday Blitz"]
[Site "Chess.com"]
[Date "2020.08.11"]
[Round "6"]
[White "gmmoranda"]
[Black "Virgo15"]
[Result "1/2-1/2"]
[WhiteElo "2897"]
[BlackElo "2690"]
[TimeControl "180+1"]
[EndTime "11:09:24 PDT"]
[Termination "Game drawn by agreement"]

1. d4 {[%clk 0:03:00.9]} 1... Nf6 {[%clk 0:02:58.9]} 2. c4 {[%clk 0:03:01]} 2...
e6 {[%clk 0:02:59.3]} 3. Nf3 {[%clk 0:03:01.3]} 3... d5 {[%clk 0:02:59.6]} 4.
Nc3 {[%clk 0:03:01.4]} 4... a6 {[%clk 0:03:00.2]} 5. cxd5 {[%clk 0:02:59.2]}
5... exd5 {[%clk 0:03:01.1]} 6. Bf4 {[%clk 0:02:57.2]} 6... Bd6 {[%clk
0:02:58.1]} 7. Bg3 {[%clk 0:02:54.8]} 7... O-O {[%clk 0:02:52.4]} 8. e3 {[%clk
0:02:55.1]} 8... Bf5 {[%clk 0:02:51.8]} 9. Be2 {[%clk 0:02:55]} 9... Bxg3 {[%clk
0:02:46.5]} 10. hxg3 {[%clk 0:02:55.9]} 10... c6 {[%clk 0:02:47]} 11. Ne5 {[%clk
0:02:47.2]} 11... Nbd7 {[%clk 0:02:45.5]} 12. g4 {[%clk 0:02:47.2]} 12... Bg6
{[%clk 0:02:30.1]} 13. f4 {[%clk 0:02:35.6]} 13... Be4 {[%clk 0:02:06.8]} 14. g5
{[%clk 0:02:33]} 14... Ne8 {[%clk 0:01:35.4]} 15. Nxe4 {[%clk 0:02:30.9]} 15...
dxe4 {[%clk 0:01:34.9]} 16. Bc4 {[%clk 0:01:44.8]} 16... g6 {[%clk 0:01:07.6]}
17. Qg4 {[%clk 0:01:26.8]} 17... Nxe5 {[%clk 0:00:54.3]} 18. fxe5 {[%clk
0:01:26.9]} 18... Qa5+ {[%clk 0:00:37.3]} 19. Ke2 {[%clk 0:01:25.7]} 19... Qb4
{[%clk 0:00:32.7]} 20. Bb3 {[%clk 0:01:24.8]} 20... Ng7 {[%clk 0:00:20.9]} 21.
Qh4 {[%clk 0:01:19.6]} 21... h5 {[%clk 0:00:19.4]} 22. gxh6 {[%clk 0:01:18.8]}
22... Nf5 {[%clk 0:00:16.7]} 23. Qg5 {[%clk 0:00:59.6]} 23... Kh7 {[%clk
0:00:11.9]} 24. Raf1 {[%clk 0:00:59.4]} 24... Qb5+ {[%clk 0:00:06.6]} 25. Kd1
{[%clk 0:00:55.4]} 25... Qd3+ {[%clk 0:00:06.5]} 26. Kc1 {[%clk 0:00:51.7]}
26... Qxe3+ {[%clk 0:00:03.2]} 27. Qxe3 {[%clk 0:00:50.7]} 27... Nxe3 {[%clk
0:00:04.1]} 28. Rxf7+ {[%clk 0:00:48.5]} 28... Rxf7 {[%clk 0:00:05]} 29. Bxf7
{[%clk 0:00:49.4]} 29... Nd5 {[%clk 0:00:02.7]} 30. g4 {[%clk 0:00:44.8]} 30...
Ne7 {[%clk 0:00:03.1]} 31. g5 {[%clk 0:00:43.7]} 31... Rd8 {[%clk 0:00:03.5]}
32. Rf1 {[%clk 0:00:37.1]} 32... e3 {[%clk 0:00:02.6]} 33. Bc4 {[%clk
0:00:35.4]} 33... Nf5 {[%clk 0:00:02.8]} 34. d5 {[%clk 0:00:33]} 34... cxd5
{[%clk 0:00:02.9]} 35. Bd3 {[%clk 0:00:33.2]} 35... Rf8 {[%clk 0:00:03.4]} 36.
Kd1 {[%clk 0:00:31]} 36... d4 {[%clk 0:00:03.6]} 37. Rf4 {[%clk 0:00:30]} 37...
Re8 {[%clk 0:00:03.8]} 38. Bxf5 {[%clk 0:00:29]} 38... gxf5 {[%clk 0:00:04.7]}
39. Rxf5 {[%clk 0:00:28.6]} 39... Kg6 {[%clk 0:00:05.2]} 40. Rf4 {[%clk
0:00:28.9]} 40... Kxg5 {[%clk 0:00:05.3]} 41. Rxd4 {[%clk 0:00:28.5]} 41... Kxh6
{[%clk 0:00:05]} 42. Rd6+ {[%clk 0:00:27.7]} 42... Kg5 {[%clk 0:00:05.2]} 43. e6
{[%clk 0:00:27.7]} 43... Kf6 {[%clk 0:00:04]} 44. Rb6 {[%clk 0:00:27.3]} 44...
Re7 {[%clk 0:00:04.1]} 45. Ke2 {[%clk 0:00:27.1]} 45... Rxe6 {[%clk 0:00:03.7]}
46. Rxb7 {[%clk 0:00:27.1]} 46... Kf5 {[%clk 0:00:03.2]} 47. Rc7 {[%clk
0:00:26.8]} 47... Kf4 {[%clk 0:00:03.5]} 48. Rc4+ {[%clk 0:00:26.9]} 48... Re4
{[%clk 0:00:03.7]} 49. Rc6 {[%clk 0:00:26.9]} 49... Rd4 {[%clk 0:00:03.9]} 50.
Rf6+ {[%clk 0:00:27.1]} 50... Ke5 {[%clk 0:00:04.3]} 51. Rb6 {[%clk 0:00:27.4]}
51... Ke4 {[%clk 0:00:03.8]} 52. Re6+ {[%clk 0:00:26.4]} 52... Kd5 {[%clk
0:00:03.7]} 53. Rxe3 {[%clk 0:00:26.7]} 53... Rh4 {[%clk 0:00:04]} 54. Rb3
{[%clk 0:00:22.6]} 54... Kc5 {[%clk 0:00:04.2]} 55. Rb8 {[%clk 0:00:21.7]} 55...
Rh2+ {[%clk 0:00:04.6]} 56. Kd3 {[%clk 0:00:22.1]} 56... Rh3+ {[%clk 0:00:05.1]}
57. Kc2 {[%clk 0:00:22.5]} 57... Rh2+ {[%clk 0:00:05.7]} 58. Kb3 {[%clk
0:00:22.9]} 58... Rh4 {[%clk 0:00:06.1]} 59. Ka3 {[%clk 0:00:22.7]} 59... Kc6
{[%clk 0:00:06.2]} 60. b4 {[%clk 0:00:22.6]} 60... Rh2 {[%clk 0:00:06.2]} 61.
Kb3 {[%clk 0:00:21.6]} 61... Rg2 {[%clk 0:00:06.4]} 62. a3 {[%clk 0:00:21.4]}
62... Kc7 {[%clk 0:00:06.8]} 63. Re8 {[%clk 0:00:20.9]} 63... Kb6 {[%clk
0:00:07.2]} 64. Re6+ {[%clk 0:00:20.9]} 64... Kb7 {[%clk 0:00:07.8]} 65. Ka4
{[%clk 0:00:21.3]} 65... Rg3 {[%clk 0:00:08.3]} 66. Rd6 {[%clk 0:00:21.5]} 66...
Rh3 {[%clk 0:00:08.5]} 67. Rd1 {[%clk 0:00:20.3]} 67... Rg3 {[%clk 0:00:08.7]}
68. Re1 {[%clk 0:00:20.6]} 68... Rh3 {[%clk 0:00:09.1]} 69. Re7+ {[%clk
0:00:21.1]} 69... Kb6 {[%clk 0:00:09]} 70. Re6+ {[%clk 0:00:21]} 70... Kb7
{[%clk 0:00:09.5]} 71. Re1 {[%clk 0:00:21.7]} 71... Rg3 {[%clk 0:00:09.7]} 72.
Rb1 {[%clk 0:00:22.2]} 72... Rh3 {[%clk 0:00:10.1]} 73. Rb3 {[%clk 0:00:22.8]}
73... Rh4 {[%clk 0:00:10.4]} 74. Rc3 {[%clk 0:00:22.4]} 74... Rg4 {[%clk
0:00:10.4]} 75. Ka5 {[%clk 0:00:22.4]} 75... Rg5+ {[%clk 0:00:10.3]} 76. Rc5
{[%clk 0:00:22.7]} 76... Rg3 {[%clk 0:00:07.3]} 77. a4 {[%clk 0:00:23]} 77...
Rg6 {[%clk 0:00:07.4]} 78. Rf5 {[%clk 0:00:22.7]} 78... Rg7 {[%clk 0:00:07.8]}
79. Rh5 {[%clk 0:00:20.3]} 79... Rf7 {[%clk 0:00:07.9]} 80. Rh6 {[%clk
0:00:20.4]} 80... Rf5+ {[%clk 0:00:08.2]} 81. b5 {[%clk 0:00:21]} 81... axb5
{[%clk 0:00:09.1]} 82. Rh7+ {[%clk 0:00:20.9]} 82... Kc6 {[%clk 0:00:08.2]} 83.
Rh6+ {[%clk 0:00:20.5]} 83... Kb7 {[%clk 0:00:08.8]} 84. axb5 {[%clk 0:00:20.9]}
84... Rf7 {[%clk 0:00:08.8]} 85. Rg6 {[%clk 0:00:21.1]} 85... Rh7 {[%clk
0:00:07.7]} 1/2-1/2